bitfinex/quotes_SOLUSD_20240612
["timestamp","ask_amount","ask_price","bid_price","bid_amount"]
[1718156381727,2.5229,146.66,146.62,0.17]
[1718156381916,2.5229,146.66,146.62,3.2034]
[1718156382100,2.5227,146.67,146.63,0.17]
[1718156382300,2.523,146.65,146.6,0.17]
[1718156382504,20.41,146.67,146.6,0.17]
[1718156382722,20.41,146.65,146.6,0.34]
[1718156383026,2.5234,146.63,146.6,0.34]
[1718156383399,2.5235,146.62,146.6,0.34]
[1718156383895,2.5242,146.58,146.51,10.101]
[1718156384101,20.41,146.63,146.52,2.5251]
[1718156384102,2.5244,146.57,146.52,2.5251]
[1718156384313,2.5244,146.57,146.46,100.0]
[1718156384314,20.41,146.6,146.47,5.0521]
[1718156384496,22.9342,146.59,146.53,2.5249]
[1718156384690,20.41,146.59,146.53,2.5249]
[1718156384894,2.5242,146.58,146.54,2.5248]
[1718156385628,2.5242,146.58,146.53,2.5249]
[1718156386117,2.5242,146.58,146.54,2.5248]
[1718156386299,2.5242,146.58,146.53,2.5249]
[1718156386696,100.0,146.63,146.5,19.2854]
[1718156386697,2.5246,146.56,146.5,19.2854]
[1718156386901,2.5246,146.56,146.51,2.5253]
[1718156387121,2.5244,146.57,146.52,2.5252]
[1718156387422,2.5242,146.58,146.54,2.5248]
[1718156387630,20.41,146.59,146.51,2.5252]
[1718156387792,2.5246,146.56,146.51,2.5252]
[1718156387998,2.5246,146.56,146.52,0.68]
[1718156388212,2.5248,146.55,146.5,2.5255]
[1718156389001,2.5244,146.57,146.52,2.5251]
[1718156389231,2.5245,146.56,146.51,2.5253]
[1718156389530,2.5247,146.55,146.5,2.5255]
[1718156389715,2.5249,146.54,146.5,0.17]
[1718156389913,2.5249,146.54,146.49,2.5256]
[1718156390627,2.5249,146.54,146.5,2.5255]
[1718156391196,2.5249,146.54,146.51,0.17]
[1718156391427,2.525,146.53,146.49,2.5257]
[1718156391922,5.0492,146.56,146.46,15.1964]
[1718156391923,20.41,146.56,146.47,17.6825]
[1718156392118,22.9346,146.56,146.51,2.5253]
[1718156392716,2.5247,146.55,146.5,3.0355]
[1718156392906,2.5247,146.55,146.49,0.17]
[1718156392907,2.5251,146.53,146.49,0.17]
[1718156393232,2.5251,146.53,146.43,5.0533]
[1718156393233,2.5257,146.5,146.43,5.0533]
[1718156393412,20.41,146.52,146.46,2.5262]
[1718156393807,2.5258,146.49,146.44,2.5264]
[1718156394432,2.5258,146.49,146.45,2.5264]
[1718156394730,2.5256,146.5,146.45,2.5264]
[1718156395523,2.5256,146.5,146.46,0.68]
[1718156395725,2.5256,146.5,146.46,3.2062]
[1718156396221,2.5254,146.51,146.46,3.2062]
[1718156396422,2.5251,146.53,146.46,0.68]
[1718156396631,2.5251,146.53,146.49,0.17]
[1718156396827,39.2917,146.54,146.49,2.5256]
[1718156397126,2.525,146.53,146.48,0.51]
[1718156397306,6.4141,146.55,146.49,0.17]
[1718156397307,2.5252,146.52,146.49,0.17]
[1718156397510,2.5254,146.51,146.48,0.51]
[1718156398845,2.5253,146.52,146.48,3.0359]
[1718156399007,2.5251,146.53,146.48,0.51]
[1718156399208,22.9351,146.53,146.48,3.0357]
[1718156400233,22.9351,146.53,146.48,0.51]
[1718156400432,29.3489,146.55,146.49,0.17]
[1718156400633,26.8241,146.55,146.51,2.5253]
[1718156400836,29.3488,146.55,146.51,2.5253]
[1718156401021,26.8874,146.53,146.48,0.34]
[1718156401221,2.5254,146.51,146.48,0.17]
[1718156401535,20.41,146.55,146.48,0.34]
[1718156401736,2.525,146.54,146.49,2.8656]
[1718156402237,2.525,146.54,146.5,2.6955]
[1718156402448,22.9348,146.55,146.5,2.6955]
[1718156402729,2.5247,146.55,146.51,2.5253]
[1718156402943,2.5246,146.56,146.51,2.5253]
[1718156403238,2.5246,146.56,146.49,5.3913]
[1718156403239,20.41,146.55,146.49,0.34]
[1718156403405,26.9151,146.55,146.49,2.8656]
[1718156403609,2.5249,146.54,146.5,2.6955]
[1718156403830,2.5249,146.54,146.48,0.17]
[1718156403831,5.0493,146.56,146.46,25.0523]
[1718156404046,5.0496,146.55,146.47,0.34]
[1718156404334,10.0988,146.56,146.49,2.5256]
[1718156404335,2.5249,146.54,146.49,2.5256]
[1718156404512,2.5249,146.54,146.5,0.34]
[1718156404715,2.5249,146.54,146.5,2.8655]
[1718156405427,2.5252,146.53,146.5,0.34]
[1718156405626,2.5252,146.52,146.5,0.34]
[1718156406521,2.5251,146.53,146.5,0.34]
[1718156406729,2.5254,146.51,146.46,20.0]
[1718156407038,2.5254,146.51,146.47,2.526]
[1718156407446,2.5254,146.51,146.46,22.5261]
[1718156407621,2.5254,146.51,146.47,2.526]
[1718156407938,2.5253,146.52,146.47,2.526]
[1718156408127,2.5253,146.52,146.48,0.51]
[1718156408522,2.5253,146.52,146.48,3.0359]
[1718156408943,2.5253,146.52,146.48,0.51]
[1718156410347,27.1454,146.52,146.42,2.5653]
[1718156410531,2.526,146.48,146.43,2.5267]
[1718156410735,2.5259,146.48,146.44,2.5265]
[1718156411765,20.41,146.5,146.45,0.34]
[1718156411915,20.41,146.5,146.45,0.17]
[1718156412120,2.5258,146.49,146.45,0.17]
[1718156413764,20.41,146.52,146.47,0.17]
[1718156414051,2.5255,146.51,146.46,2.5262]
[1718156414242,2.5255,146.51,146.47,2.526]
[1718156414640,20.41,146.52,146.46,2.5262]
[1718156414844,2.5256,146.5,146.46,2.5262]
[1718156415037,2.5256,146.5,146.45,2.6963]
[1718156415229,2.5256,146.5,146.45,0.17]
[1718156415230,2.5258,146.49,146.45,0.17]
[1718156416443,2.5258,146.49,146.45,2.6964]
[1718156416672,12.6264,146.52,146.45,2.6964]
[1718156416673,22.9356,146.5,146.45,2.6964]
[1718156416975,2.5257,146.49,146.45,2.6964]
[1718156417181,2.5262,146.47,146.44,0.51]
[1718156417795,2.5267,146.44,146.39,3.3601]
[1718156418150,25.4626,146.46,146.39,0.8328]
[1718156418151,2.5269,146.43,146.39,0.8328]
[1718156418376,2.527,146.42,146.39,0.8328]
[1718156418756,27.1138,146.42,146.39,0.8328]
[1718156418977,20.41,146.38,146.27,27.3936]
[1718156419295,20.41,146.38,146.25,2.5665]
[1718156419296,2.5284,146.34,146.28,2.5292]
[1718156419659,6.9115,146.34,146.29,2.5292]
[1718156420062,6.9115,146.34,146.3,2.529]
[1718156420261,9.4399,146.34,146.26,5.0593]
[1718156420474,9.4399,146.34,146.28,2.5293]
[1718156421073,6.6265,146.33,146.24,17.68825]
[1718156421278,9.155,146.33,146.27,2.5295]
[1718156421575,27.0365,146.33,146.24,0.83275]
[1718156421767,20.41,146.3,146.24,0.83275]
[1718156422076,2.5297,146.26,146.24,0.83275]
[1718156422257,9.1562,146.26,146.24,0.83275]
[1718156422651,6.6265,146.26,146.24,0.83275]
[1718156423054,20.41,146.29,146.24,0.83275]
[1718156423261,6.6265,146.29,146.24,0.83275]
[1718156423461,6.6265,146.29,146.24,3.36275]
[1718156423656,19.7812,146.31,146.25,2.5299]
[1718156423857,6.3305,146.33,146.29,2.5292]
[1718156424068,2.5283,146.34,146.28,3.2093]
[1718156424296,22.9382,146.35,146.29,2.5291]
[1718156424462,2.5283,146.34,146.28,3.2093]
[1718156424961,275.3802,146.36,146.24,0.83275]
[1718156424962,20.41,146.31,146.24,0.83275]
[1718156425287,100.0,146.33,146.24,0.83275]
[1718156425288,27.285,146.33,146.24,0.83275]
[1718156425597,2.5295,146.28,146.24,0.83275]
[1718156425777,20.41,146.29,146.24,0.83275]
[1718156425960,2.5298,146.26,146.24,0.83275]
[1718156427054,8.824,146.26,146.24,0.83275]
[1718156427256,22.9399,146.25,146.24,0.83275]
[1718156427605,50.8885,146.25,146.24,0.83275]
[1718156428972,58.4782,146.25,146.24,0.83275]
[1718156429192,68.5978,146.25,146.24,0.83275]
[1718156430296,20.41,146.2,146.14,2.5317]
[1718156430507,20.41,146.2,146.1,2.5324]
[1718156430508,2.5316,146.15,146.1,2.5324]
[1718156430887,20.41,146.21,146.09,120.28185]
[1718156431203,20.41,146.21,146.13,5.0638]
[1718156431204,2.5307,146.21,146.13,5.0638]
[1718156431503,6.6027,146.23,146.12,5.0643]
[1718156431711,6.6027,146.24,146.14,0.17]
[1718156432009,22.9409,146.19,146.14,2.5317]
[1718156432309,117.7125,146.23,146.12,5.0642]
[1718156432310,2.5308,146.2,146.12,5.0642]
[1718156432498,6.403,146.22,146.14,2.5317]
[1718156432689,2.5309,146.19,146.14,2.5317]
[1718156433010,20.41,146.21,146.13,45.0]
[1718156433312,22.941,146.19,146.14,2.5317]
[1718156433807,20.41,146.19,146.15,2.5315]
[1718156434007,20.20423683,146.25,146.15,2.5315]
[1718156434008,16.0251,146.25,146.18,2.5309]
[1718156434191,2.5302,146.23,146.19,2.5309]
[1718156434509,2.5299,146.25,146.2,2.5307]
[1718156434723,2.5298,146.26,146.21,2.5305]
[1718156434893,2.5298,146.26,146.22,2.5304]
[1718156435085,22.9398,146.26,146.21,2.5305]
[1718156435525,22.9401,146.24,146.17,0.17]
[1718156435819,20.41,146.21,146.07,127.48]
[1718156435996,2.5307,146.2,146.12,22.789]
[1718156436201,20.41,146.2,146.09,30.41215]
[1718156436511,22.941,146.19,146.14,2.5317]
[1718156436725,2.5306,146.21,146.13,5.0639]
[1718156436884,5.0605,146.23,146.15,2.5316]
[1718156437084,2.531,146.19,146.11,5.0645]
[1718156437286,2.5308,146.2,146.12,5.0643]
[1718156437511,105.0606,146.23,146.16,2.5314]
[1718156437512,22.9406,146.21,146.16,2.5314]
[1718156437694,9.4315,146.2,146.16,2.5314]
[1718156438295,22.9406,146.21,146.16,2.5314]
[1718156438505,6.9008,146.24,146.13,5.0637]
[1718156438506,22.9409,146.2,146.13,5.0637]
[1718156438708,29.4956,146.2,146.15,2.5315]
[1718156438908,22.9409,146.19,146.12,10.1285]
[1718156439116,22.9409,146.19,146.14,2.5318]
[1718156439812,22.9409,146.19,146.15,2.5316]
[1718156440314,22.9409,146.19,146.14,2.5317]
[1718156440513,26.9647,146.2,146.09,27.87985]
[1718156440717,2.531,146.19,146.14,2.5317]
[1718156441014,29.4955,146.2,146.15,2.5316]
[1718156441190,2.5302,146.23,146.15,0.17]
[1718156441521,22.9401,146.24,146.19,2.5309]
[1718156441697,22.9401,146.24,146.2,2.5307]
[1718156441698,26.8132,146.24,146.2,2.5307]
[1718156441899,2.5296,146.27,146.22,2.5304]
[1718156442109,7.5883,146.28,146.2,2.5307]
[1718156442424,2.5304,146.23,146.18,2.5309]
[1718156442592,2.5305,146.22,146.17,47.5312]
[1718156442901,2.5303,146.23,146.18,2.531]
[1718156443103,2.53,146.25,146.19,0.34]
[1718156443303,17.707,146.27,146.18,45.0]
[1718156443619,2.5303,146.23,146.18,47.531]
[1718156443809,2.5301,146.24,146.19,2.5309]
[1718156444008,2.5299,146.26,146.21,2.5305]
[1718156444321,6.5211,146.29,146.22,2.5303]
[1718156444632,2.5301,146.24,146.18,45.0]
[1718156444799,2.5301,146.24,146.19,2.7008]
[1718156444994,2.5298,146.26,146.21,2.5305]
[1718156445193,2.5298,146.26,146.19,0.17]
[1718156445194,2.5296,146.27,146.2,0.34]
[1718156445398,2.5296,146.27,146.22,2.5303]
[1718156445630,8.8413,146.27,146.22,2.5303]
[1718156446107,2.5296,146.27,146.22,2.5303]
[1718156446434,6.3117,146.26,146.22,2.5303]
[1718156446597,2.5294,146.28,146.23,2.5302]
[1718156446802,27.0258,146.28,146.23,2.5302]
[1718156447109,27.0258,146.28,146.17,18.9972]
[1718156447110,20.41,146.24,146.15,12.6576]
[1718156447316,2.5309,146.2,146.15,2.5315]
[1718156447624,2.5309,146.2,146.13,18.9972]
[1718156447625,2.5311,146.18,146.13,18.9972]
[1718156447930,2.5314,146.16,146.1,2.5573]
[1718156448109,2.5312,146.18,146.1,2.5573]
[1718156448313,20.41,146.2,146.1,2.5573]
[1718156448529,2.5312,146.18,146.14,2.5318]
[1718156448845,20.41,146.2,146.14,2.5318]
[1718156448846,9.48,146.19,146.14,2.5317]
[1718156449024,9.48,146.19,146.11,5.0646]
[1718156449211,20.41,146.2,146.13,2.5319]
[1718156449410,2.5311,146.18,146.13,2.5319]
[1718156449830,27.359,146.19,146.14,2.5317]
[1718156450343,29.8899,146.19,146.14,2.5317]
[1718156450729,28.991,146.22,146.11,2.5322]
[1718156450730,20.41,146.17,146.11,2.5322]
[1718156450939,20.41,146.17,146.09,0.83275]
[1718156451255,2.5316,146.15,146.1,2.5323]
[1718156451433,2.5316,146.15,146.09,0.83275]
[1718156451434,27.359,146.15,146.09,0.83275]
[1718156451750,26.9292,146.15,146.09,0.83275]
[1718156452116,2.5322,146.12,146.09,0.83275]
[1718156452459,29.4617,146.1,146.09,0.83275]
[1718156452823,100.0,146.08,145.97,101.44232]
[1718156453170,20.41,146.05,145.97,101.44232]
[1718156453332,20.41,146.02,145.97,101.44232]
[1718156453540,20.41,146.0,145.97,101.44232]
[1718156453841,2.5342,146.01,145.97,101.44232]
[1718156454063,27.98201158,146.08,145.97,101.44232]
[1718156454265,2.5337,146.03,145.97,101.44232]
[1718156454435,5.0672,146.04,145.97,101.44232]
[1718156454642,2.5345,145.98,145.97,101.44232]
[1718156454949,100.0,146.03,145.97,101.44232]
[1718156455256,6.9166,146.05,145.97,101.44232]
[1718156455756,9.45,146.05,145.98,2.5344]
[1718156455929,20.41,146.04,145.98,2.5345]
[1718156456133,16.5599,146.08,145.98,0.17]
[1718156456371,16.5599,146.08,145.98,20.34]
[1718156456372,2.5329,146.08,145.98,20.34]
[1718156456740,2.5329,146.08,146.02,2.5338]
[1718156457059,6.674,146.09,146.03,0.34]
[1718156457370,2.5331,146.07,146.0,2.5341]
[1718156457664,2.5328,146.08,145.98,0.17]
[1718156457876,22.943,146.07,146.0,2.5341]
[1718156458334,6.674,146.09,145.98,0.68]
[1718156458533,2.5329,146.08,145.98,0.68]
[1718156458729,6.674,146.09,145.98,0.51]
[1718156458951,20.41,146.08,145.99,0.17]
[1718156459149,22.9428,146.08,145.99,0.68]
[1718156459537,22.9428,146.08,146.01,2.534]
[1718156459935,22.9428,146.08,146.02,2.7037]
[1718156460135,2.5321,146.12,146.06,2.5331]
[1718156460635,30.2129,146.13,146.01,0.17]
[1718156460839,2.5325,146.1,146.04,2.7035]
[1718156461053,22.6166,146.13,146.03,0.51]
[1718156461232,2.5327,146.09,146.03,2.8735]
[1718156461938,2.5333,146.06,146.0,2.5342]
[1718156462258,117.7265,146.11,145.95,17.745]
[1718156462259,5.0653,146.09,145.95,105.0699]
[1718156462467,2.5332,146.06,145.96,5.0696]
[1718156462768,122.6166,146.13,145.97,201.44232]
[1718156463062,22.6166,146.13,146.06,2.533]
[1718156463266,20.41,146.12,146.01,5.068]
[1718156463453,20.41,146.12,146.02,0.68]
[1718156463842,2.5325,146.1,146.05,2.5333]
[1718156464162,6.3897,146.08,146.02,2.5338]
[1718156464336,8.9226,146.08,146.03,2.5337]
[1718156464667,2.5326,146.1,146.04,2.5334]
[1718156464865,2.5326,146.1,146.0,2.5341]
[1718156464866,5.0656,146.09,146.0,2.5341]
[1718156465056,2.5336,146.04,145.97,101.44232]
[1718156465242,2.5335,146.05,145.97,101.44232]
[1718156465440,5.065,146.1,145.97,101.44232]
[1718156465638,2.533,146.07,146.02,2.5338]
[1718156465952,2.5332,146.06,146.01,2.5339]
[1718156466148,2.5331,146.07,146.02,2.5338]
[1718156466350,10.1374,146.16,146.0,100.0]
[1718156466574,7.5962,146.13,146.04,0.17]
[1718156466870,5.0647,146.11,146.03,2.5336]
[1718156467069,2.533,146.08,146.02,2.7038]
[1718156467252,2.533,146.08,146.01,0.51]
[1718156467253,20.41,146.12,146.01,0.34]
[1718156467563,2.533,146.07,146.02,2.5338]
[1718156467769,2.533,146.08,146.02,2.5338]
[1718156468064,12.6603,146.13,146.03,0.17]
[1718156468267,2.5324,146.11,146.06,2.5331]
[1718156468649,20.41,146.11,146.04,2.5335]
[1718156468867,2.5329,146.08,146.03,2.5336]
[1718156469069,2.5329,146.08,146.04,0.17]
[1718156469271,2.5329,146.08,146.03,2.5336]
[1718156469571,20.41,146.11,146.0,5.0684]
[1718156469572,2.5327,146.09,146.0,5.0683]
[1718156469787,2.5327,146.09,146.03,2.5336]
[1718156469957,2.5327,146.09,146.04,2.5335]
[1718156470478,2.5318,146.14,146.09,2.5326]
[1718156470676,269.9351,146.17,146.05,5.0665]
[1718156470677,20.41,146.16,146.1,2.5323]
[1718156470849,20.41,146.14,146.07,0.17]
[1718156471173,2.5328,146.09,146.04,2.7034]
[1718156471353,2.5328,146.08,146.05,0.51]
[1718156471762,2.5328,146.08,146.03,2.5336]
[1718156471964,7.5979,146.1,146.0,20.0]
[1718156472268,5.064,146.13,146.02,12.6691]
[1718156472475,5.064,146.13,146.05,2.5333]
[1718156472674,11.8466,146.13,146.06,0.34]
[1718156472880,2.5327,146.09,146.06,0.34]
[1718156473180,2.5328,146.08,146.03,2.5336]
[1718156473558,5.0672,146.04,145.95,23.1925]
[1718156473772,5.0672,146.04,145.94,0.83275]
[1718156473773,2.5343,146.0,145.94,3.36795]
[1718156473978,6.8211,146.0,145.94,0.83275]
[1718156474169,2.534,146.02,145.96,2.5349]
[1718156474561,2.5337,146.03,145.97,103.97702]
[1718156475178,5.0669,146.05,145.98,0.17]
[1718156475353,2.5336,146.04,145.98,3.2145]
[1718156475552,2.5334,146.05,146.0,0.17]
[1718156475756,2.5334,146.05,145.97,101.44232]
[1718156475757,2.5342,146.01,145.97,101.44232]
[1718156475965,2.5342,146.0,145.97,101.44232]
[1718156476587,6.7985,146.03,145.97,103.97702]
[1718156476793,2.534,146.02,145.97,101.44232]
[1718156477094,2.534,146.02,145.98,0.68]
[1718156477699,6.6254,146.0,145.97,101.44232]
[1718156477870,2.5345,145.98,145.97,101.44232]
[1718156478195,9.1597,146.0,145.97,101.44232]
[1718156478558,6.6254,146.0,145.97,101.44232]
[1718156478784,6.7513,145.99,145.97,101.44232]
[1718156478960,32.2304,145.98,145.97,101.44232]
[1718156479164,9.2858,145.98,145.97,82.95317911]
[1718156479412,2.5345,145.98,145.97,82.95317911]
[1718156479588,23.0945,145.98,145.97,82.95317911]
[1718156479792,2.5345,145.98,145.97,82.95317911]
[1718156480064,31.9048,145.98,145.97,82.95317911]
[1718156480387,52.4648,145.98,145.97,82.95317911]
[1718156481071,21.7665,145.98,145.97,82.95317911]
[1718156481273,31.9048,145.98,145.97,82.95317911]
[1718156481571,29.6537,145.98,145.97,82.95317911]
[1718156481759,2.5345,145.98,145.97,82.95317911]
[1718156483474,28.1636,145.98,145.97,82.95317911]
[1718156483703,23.0945,145.98,145.97,82.95317911]
[1718156484102,2.5344,146.0,145.97,82.95317911]
[1718156484595,2.5344,145.99,145.97,82.95317911]
[1718156484898,2.5345,145.98,145.97,82.95317911]
[1718156486306,29.8802,145.98,145.97,82.95317911]
[1718156486478,52.6913,145.98,145.97,82.95317911]
[1718156486804,2.5345,145.98,145.97,82.95317911]
[1718156487001,2.5345,145.99,145.97,82.95317911]
[1718156487393,6.3298,146.03,145.97,82.95317911]
[1718156487793,2.5342,146.0,145.97,82.95317911]
[1718156488108,36.0267,146.07,145.99,2.7043]
[1718156488284,28.4275,146.07,145.99,2.7043]
[1718156488487,2.5337,146.04,145.99,0.17]
[1718156488693,2.5337,146.03,145.99,0.17]
[1718156489411,2.5339,146.02,145.97,85.48787911]
[1718156490091,2.534,146.01,145.97,82.95317911]
[1718156490289,27.1735,146.02,145.97,82.95317911]
[1718156490510,2.5345,145.98,145.97,82.95317911]
[1718156490750,69.3279,145.98,145.97,82.95317911]
[1718156491229,69.4979,145.98,145.97,78.95317911]
[1718156491408,152.8892,145.95,145.94,0.83275]
[1718156491610,52.8892,145.95,145.94,0.83275]
[1718156491835,2.5351,145.95,145.94,0.83275]
[1718156492026,2.535,145.96,145.94,0.83275]
[1718156492224,6.3805,145.99,145.94,0.83275]
[1718156492428,2.5343,146.0,145.94,0.83275]
[1718156492635,5.0682,146.01,145.94,0.83275]
[1718156492932,25.6288,145.99,145.94,0.33275]
[1718156493138,26.8815,145.96,145.94,0.33275]
[1718156493311,2.5351,145.95,145.94,0.33275]
[1718156493511,6.3215,145.99,145.94,0.33275]
[1718156493708,2.5351,145.95,145.94,0.33275]
[1718156493931,2.5346,145.98,145.94,0.33275]
[1718156494636,2.5347,145.97,145.94,0.33275]
[1718156494842,2.5349,145.96,145.94,0.33275]
[1718156495339,2.5351,145.95,145.94,0.33275]
[1718156497230,28.1653,145.95,145.94,0.33275]
[1718156497431,2.5351,145.95,145.94,0.33275]
[1718156497639,5.0689,145.99,145.94,0.33275]
[1718156497833,2.535,145.96,145.94,0.33275]
[1718156498220,2.5348,145.97,145.94,0.33275]
[1718156499034,2.5345,145.99,145.94,0.33275]
[1718156499237,6.3215,146.03,145.95,0.17]
[1718156499427,2.5343,146.0,145.95,9.4247]
[1718156499617,2.5348,145.97,145.94,0.33275]
[1718156499818,28.1623,146.01,145.94,0.33275]
[1718156500023,2.5349,145.96,145.94,0.33275]
[1718156500950,2.5348,145.97,145.94,0.33275]
[1718156501119,30.6987,145.98,145.94,0.33275]
[1718156501317,2.5351,145.95,145.94,0.33275]
[1718156501525,2.5349,145.96,145.94,0.33275]
[1718156501739,2.5347,145.98,145.94,0.33275]
[1718156502038,2.5342,146.0,145.95,9.2769]
[1718156502227,2.5342,146.0,145.94,6.67855]
[1718156502429,25.6275,146.03,145.94,6.67855]
[1718156502622,2.5342,146.0,145.95,2.705]
[1718156502933,2.5342,146.0,145.96,6.3458]
[1718156503130,20.56,146.02,145.94,0.33275]
[1718156503331,2.5347,145.98,145.94,0.33275]
[1718156503560,2.5348,145.97,145.95,0.17]
[1718156503847,2.5348,145.97,145.94,6.67855]
[1718156503848,2.5351,145.95,145.94,0.33275]
[1718156504020,7.6053,145.95,145.94,0.33275]
[1718156504960,45.911,145.95,145.94,0.33275]
[1718156505452,35.7706,145.95,145.94,0.33275]
[1718156507756,15.2106,145.95,145.94,0.33275]
[1718156507931,2.5351,145.95,145.94,0.33275]
[1718156508923,52.4086,145.95,145.94,0.33275]
[1718156509477,52.4086,145.95,145.94,5e-05]
[1718156509926,35.7706,145.95,145.94,5e-05]
[1718156510544,45.911,145.95,145.94,5e-05]
[1718156511527,7.6053,145.95,145.94,5e-05]
[1718156512128,2.5351,145.95,145.94,5e-05]
[1718156512337,10.1367,146.01,145.94,5e-05]
[1718156512550,2.535,145.96,145.94,5e-05]
[1718156512937,2.5351,145.95,145.94,5e-05]
[1718156513258,2.535,145.96,145.94,5e-05]
[1718156513462,2.5351,145.95,145.94,5e-05]
[1718156514438,15.2106,145.95,145.94,5e-05]
[1718156514739,2.5351,145.95,145.94,5e-05]
[1718156515161,2.535,145.96,145.94,5e-05]
[1718156516150,2.5351,145.95,145.94,5e-05]
[1718156516468,2.535,145.96,145.94,5e-05]
[1718156516982,2.5351,145.95,145.94,5e-05]
[1718156517261,2.535,145.96,145.94,5e-05]
[1718156517571,2.5351,145.95,145.94,5e-05]
[1718156517941,35.7706,145.95,145.94,5e-05]
[1718156518143,45.911,145.95,145.94,5e-05]
[1718156520888,53.1266,145.95,145.94,5e-05]
[1718156521577,53.1266,145.95,145.82,16.0223]
[1718156521578,20.56,145.89,145.82,16.0223]
[1718156521762,17.7544,145.88,145.82,16.0223]
[1718156521962,2.5366,145.87,145.82,18.5595]
[1718156522264,2.5366,145.87,145.8,0.83275]
[1718156522265,20.56,145.87,145.8,0.83275]
[1718156522590,5.0734,145.86,145.81,7.0393]
[1718156522898,5.0726,145.88,145.81,7.0393]
[1718156523184,5.0737,145.85,145.8,0.83275]
[1718156523385,2.5375,145.81,145.8,0.83275]
[1718156524900,5.074,145.84,145.8,0.83275]
[1718156525119,2.5375,145.81,145.8,0.83275]
[1718156525790,5.0737,145.85,145.8,0.83275]
[1718156525999,10.1463,145.87,145.8,0.83275]
[1718156526000,5.0731,145.87,145.8,8.26715]
[1718156526183,2.5367,145.86,145.81,9.9719]
[1718156526378,5.0728,145.88,145.81,7.4344]
[1718156526601,2.5372,145.83,145.81,7.4344]
[1718156526899,2.5372,145.83,145.8,7.82785]
[1718156527393,2.537,145.84,145.8,7.82785]
[1718156527574,2.537,145.84,145.8,10.36555]
[1718156527775,25.633,145.87,145.8,10.36535]
[1718156528006,20.56,145.88,145.81,6.8121]
[1718156528309,118.3047,145.92,145.81,7.1521]
[1718156528476,5.0724,145.89,145.82,6.8121]
[1718156528682,5.0726,145.88,145.82,6.8121]
[1718156529009,5.0724,145.89,145.82,9.3493]
[1718156529188,2.5365,145.87,145.82,9.3493]
[1718156529597,2.5366,145.86,145.82,9.3493]
[1718156530105,2.5365,145.87,145.82,9.3493]
[1718156530282,2.5365,145.87,145.83,7.4492]
[1718156530477,25.6328,145.88,145.83,7.4492]
[1718156530680,25.633,145.87,145.81,7.0944]
[1718156530887,5.0737,145.85,145.8,0.83275]
[1718156531139,2.5375,145.81,145.8,0.83275]
[1718156531806,2.5374,145.82,145.8,0.83275]
[1718156532111,2.5375,145.81,145.8,0.83275]
[1718156532314,7.6125,145.81,145.8,0.83275]
[1718156532486,38.3226,145.81,145.8,0.83275]
[1718156533106,53.1287,145.81,145.8,0.83275]
[1718156533612,80.6087,145.81,145.8,0.83275]
[1718156534213,2.5375,145.81,145.8,0.83275]
[1718156534420,22.2007,145.89,145.81,2.5374]
[1718156534609,22.2007,145.89,145.8,0.83275]
[1718156534610,2.5366,145.87,145.82,2.5372]